bitfinex/quotes_SOLUSD_20250212
["timestamp","ask_amount","ask_price","bid_price","bid_amount"]
[1739381897230,25.1041495,195.34,195.31,0.03]
[1739381897525,26.29694584,195.33,195.31,0.03]
[1739381898339,4.73329,195.32,195.31,0.03]
[1739381898708,24.73329,195.32,195.31,0.03]
[1739381899736,5.67480634,195.34,195.31,25.1341495]
[1739381900034,0.12549,195.33,195.31,25.1341495]
[1739381900215,1.06730634,195.32,195.31,0.03]
[1739381900415,1.06730634,195.32,195.31,25.1341495]
[1739381900826,1.06730634,195.32,195.31,0.03]
[1739381900827,5.80059634,195.32,195.31,0.03]
[1739381901904,1.06730634,195.32,195.31,25.1341495]
[1739381902446,1.19279634,195.32,195.31,0.03]
[1739381902650,1.19279634,195.32,195.31,25.1341495]
[1739381903253,1.06730634,195.32,195.31,25.1341495]
[1739381903826,20.0,195.33,195.31,25.1341495]
[1739381903827,1.06730634,195.33,195.31,25.1341495]
[1739381904055,1.06730634,195.36,195.32,25.1041495]
[1739381904255,0.12549,195.35,195.33,25.1041495]
[1739381904549,1.06730634,195.34,195.33,25.1041495]
[1739381905541,1.06730634,195.36,195.33,25.1041495]
[1739381905858,1.06730634,195.36,195.35,25.1041495]
[1739381906040,1.19279634,195.38,195.35,25.1041495]
[1739381906368,1.19279634,195.38,195.37,25.1041495]
[1739381906529,20.12549,195.37,195.36,25.1041495]
[1739381908344,0.12549,195.37,195.36,25.1041495]
[1739381910224,4.73209,195.37,195.36,25.1041495]
[1739381910942,1.06730634,195.38,195.36,25.1041495]
[1739381911258,1.06730634,195.38,195.37,25.1041495]
[1739381912256,5.79919634,195.38,195.36,25.1041495]
[1739381912463,0.12549,195.37,195.34,25.1041495]
[1739381912641,1.06730634,195.36,195.34,25.1041495]
[1739381912963,0.12549,195.35,195.33,25.1041495]
[1739381913162,0.12549,195.33,195.31,25.1341495]
[1739381913326,1.19279634,195.32,195.31,0.03]
[1739381913532,1.06730634,195.32,195.31,25.1341495]
[1739381914253,1.19279634,195.32,195.31,0.03]
[1739381914440,4.73329,195.32,195.31,25.1341495]
[1739381916262,5.67500634,195.33,195.31,25.1341495]
[1739381916467,5.67500634,195.33,195.32,25.1041495]
[1739381916767,4.6073,195.35,195.32,25.1041495]
[1739381916965,4.6073,195.35,195.34,25.1041495]
[1739381917145,4.73279,195.35,195.34,25.1041495]
[1739381917344,4.6073,195.35,195.34,25.1041495]
[1739381917767,4.6057,195.41,195.34,25.1041495]
[1739381917939,4.6057,195.41,195.37,25.1041495]
[1739381918357,0.12549,195.38,195.37,25.1041495]
[1739381918845,5.79919634,195.38,195.37,25.1041495]
[1739381919358,5.67370634,195.38,195.37,25.1041495]
[1739381920639,1.06730634,195.38,195.37,25.1041495]
[1739381920834,1.06730634,195.39,195.37,25.1041495]
[1739381921041,5.67290634,195.42,195.38,25.1041495]
[1739381921268,1.06730634,195.42,195.41,25.1041495]
[1739381922284,0.12549,195.41,195.39,25.1041495]
[1739381922448,1.06730634,195.4,195.36,0.03]
[1739381922767,1.06730634,195.4,195.39,25.1041495]
[1739381923367,5.79869634,195.4,195.38,25.1041495]
[1739381923681,20.0,195.38,195.37,25.1041495]
[1739381925172,1.06730634,195.38,195.37,25.1041495]
[1739381927589,1.19279634,195.38,195.37,25.1041495]
[1739381927768,20.0,195.35,195.25,5.1216]
[1739381927968,20.0,195.35,195.32,25.1041495]
[1739381927969,1.06730634,195.34,195.32,25.1041495]
[1739381928184,1.06730634,195.34,195.33,25.1041495]
[1739381928394,5.67460634,195.34,195.33,25.1041495]
[1739381928976,20.0,195.35,195.33,25.1041495]
[1739381929178,21.06730634,195.35,195.34,25.1041495]
[1739381929875,4.6068,195.36,195.34,25.1041495]
[1739381930067,4.6068,195.36,195.35,25.1041495]
[1739381930463,11.5144,195.41,195.35,25.1041495]
[1739381930464,4.6061,195.39,195.35,25.1041495]
[1739381930703,1.06730634,195.38,195.37,25.1041495]
[1739381931080,20.12549,195.37,195.36,25.1041495]
[1739381931999,20.0,195.36,195.34,25.1041495]
[1739381932303,5.67440634,195.35,195.33,25.1041495]
[1739381932867,5.67440634,195.35,195.27,5.1209]
[1739381932868,5.67440634,195.35,195.32,25.1041495]
[1739381933098,5.67440634,195.35,195.33,25.1041495]
[1739381933407,5.67440634,195.35,195.34,25.1041495]
[1739381935577,21.06730634,195.36,195.34,25.1041495]
[1739381935778,4.6068,195.37,195.35,15.74722169]
[1739381936010,20.0,195.37,195.36,15.74722169]
[1739381936288,1.13030634,195.38,195.36,15.74722169]
[1739381936498,1.13030634,195.38,195.37,15.74722169]
[1739381937077,20.063,195.38,195.37,15.74722169]
[1739381937594,0.063,195.38,195.37,15.74722169]
[1739381938513,1.13030634,195.38,195.37,15.74722169]
[1739381938872,0.063,195.38,195.37,15.74722169]
[1739381939511,0.063,195.38,195.37,16.12369169]
[1739381939677,0.063,195.42,195.38,0.37647]
[1739381939873,0.063,195.42,195.41,15.99820169]
[1739381940088,0.063,195.42,195.41,15.74722169]
[1739381941912,0.063,195.42,195.41,21.11560169]
[1739381942215,0.063,195.44,195.42,0.25098]
[1739381942510,0.063,195.44,195.43,15.74722169]
[1739381943587,0.063,195.44,195.43,15.99820169]
[1739381943816,0.063,195.48,195.44,0.25098]
[1739381944000,0.063,195.48,195.47,15.74722169]
[1739381945113,0.063,195.48,195.47,31.74542338]
[1739381945417,1.13030634,195.56,195.54,15.74722169]
[1739381945632,0.063,195.56,195.55,15.74722169]
[1739381947188,20.0,195.54,195.53,15.74722169]
[1739381948208,1.06730634,195.55,195.53,15.74722169]
[1739381948404,20.0,195.53,195.51,15.74722169]
[1739381948618,21.06730634,195.52,195.51,15.74722169]
[1739381948793,21.06730634,195.52,195.5,15.74722169]
[1739381948998,21.06730634,195.52,195.51,15.74722169]
[1739381949409,20.0,195.52,195.51,15.74722169]
[1739381949910,5.73310634,195.54,195.51,15.74722169]
[1739381950414,20.0,195.52,195.5,15.74722169]
[1739381950620,5.85859634,195.54,195.49,15.74722169]
[1739381950621,21.06730634,195.51,195.49,15.74722169]
[1739381950794,20.0,195.5,195.46,15.74722169]
[1739381951001,0.12549,195.48,195.45,15.74722169]
[1739381951305,1.06730634,195.47,195.43,15.74722169]
[1739381951619,1.06730634,195.47,195.44,15.74722169]
[1739381952005,20.0,195.45,195.44,15.74722169]
[1739381952202,0.12549,195.44,195.42,15.74722169]
[1739381952508,20.12549,195.42,195.41,0.03]
[1739381952903,0.12549,195.42,195.41,0.03]
[1739381953117,20.12549,195.42,195.41,0.03]
[1739381953615,4.73089,195.42,195.41,0.03]
[1739381953794,24.73089,195.42,195.41,0.03]
[1739381953991,24.6054,195.42,195.41,0.03]
[1739381954735,4.6054,195.42,195.41,0.03]
[1739381955412,24.73089,195.42,195.41,0.03]
[1739381955796,63.33319168,195.42,195.41,0.03]
[1739381956022,38.14273853,195.42,195.41,0.03]
[1739381956935,13.78831853,195.41,195.36,25.19045315]
[1739381957143,0.12549,195.35,195.33,0.03]
[1739381957433,1.19279634,195.34,195.33,0.03]
[1739381957998,1.19279634,195.34,195.33,25.22045315]
[1739381958199,20.0,195.36,195.33,25.22045315]
[1739381958400,1.06730634,195.35,195.33,0.03]
[1739381958828,1.06730634,195.35,195.34,25.19045315]
[1739381959011,4.6068,195.36,195.33,25.22045315]
[1739381959208,0.12549,195.34,195.33,25.22045315]
[1739381959726,0.12549,195.34,195.33,0.03]
[1739381959920,20.12549,195.34,195.33,0.03]
[1739381960913,0.12549,195.34,195.33,0.03]
[1739381961227,24.73279,195.34,195.33,0.03]
[1739381961527,20.0,195.34,195.33,25.22045315]
[1739381961726,1.06730634,195.34,195.33,25.22045315]
[1739381962110,5.80009634,195.34,195.33,0.03]
[1739381963143,25.80009634,195.34,195.33,0.03]
[1739381965653,5.80009634,195.34,195.33,0.03]
[1739381965816,30.99054949,195.34,195.33,0.03]
[1739381966020,44.52788802,195.34,195.33,0.03]
[1739381966216,20.25098,195.3,195.25,25.19045315]
[1739381966443,0.12549,195.28,195.24,25.19045315]
[1739381966618,0.12549,195.24,195.23,0.75]
[1739381966819,1.19279634,195.24,195.23,0.75]
[1739381967055,21.19279634,195.24,195.23,0.75]
[1739381967358,25.80249634,195.24,195.23,0.75]
[1739381967652,58.57514949,195.24,195.23,0.75]
[1739381967949,33.38469634,195.24,195.23,0.75]
[1739381969059,1.19279634,195.24,195.23,25.94045315]
[1739381969233,1.06730634,195.27,195.23,25.94045315]
[1739381969548,1.542,195.35,195.23,5.8721]
[1739381969549,21.06730634,195.31,195.23,5.8721]
[1739381969733,0.12549,195.3,195.23,5.8721]
[1739381969928,21.06730634,195.29,195.26,25.19045315]
[1739381970242,0.12549,195.28,195.27,25.19045315]
[1739381970440,1.06730634,195.29,195.27,25.19045315]
[1739381970744,1.06730634,195.31,195.28,25.19045315]
[1739381970943,1.06730634,195.34,195.3,25.19045315]
[1739381971128,1.06730634,195.37,195.3,25.19045315]
[1739381971327,13.66282853,195.36,195.24,6.4501]
[1739381971533,13.91380853,195.34,195.23,0.75]
[1739381971747,0.12549,195.28,195.23,0.75]
[1739381971940,1.19279634,195.28,195.23,0.75]
[1739381972243,1.06730634,195.32,195.23,5.872]
[1739381972542,1.06730634,195.32,195.31,25.19045315]
[1739381972734,0.12549,195.31,195.28,25.19045315]
[1739381972940,0.12549,195.29,195.27,25.19045315]
[1739381973139,1.19279634,195.28,195.26,0.03]
[1739381973346,20.0,195.29,195.26,0.03]
[1739381973845,1.06730634,195.32,195.26,0.03]
[1739381974049,4.6072,195.35,195.31,25.19045315]
[1739381974343,1.06730634,195.34,195.3,25.19045315]
[1739381974547,1.06730634,195.36,195.3,25.19045315]
[1739381974929,20.0,195.36,195.3,25.19045315]
[1739381975128,21.19279634,195.36,195.35,25.19045315]
[1739381975332,1.06730634,195.38,195.35,25.19045315]
[1739381975538,1.06730634,195.38,195.37,25.19045315]
[1739381975740,20.12549,195.38,195.37,25.19045315]
[1739381975947,1.06730634,195.4,195.37,25.19045315]
[1739381976153,1.06730634,195.4,195.39,25.19045315]
[1739381976336,1.19279634,195.4,195.3,25.19045315]
[1739381976637,0.12549,195.39,195.38,25.19045315]
[1739381977551,20.12549,195.39,195.38,25.19045315]
[1739381977762,1.06730634,195.4,195.38,25.19045315]
[1739381977963,0.063,195.42,195.31,1.0]
[1739381977964,0.063,195.42,195.39,50.3809063]
[1739381978160,0.063,195.42,195.41,25.19045315]
[1739381978461,20.12549,195.41,195.4,25.19045315]
[1739381979259,0.12549,195.41,195.4,25.19045315]
[1739381980239,0.12549,195.41,195.39,25.19045315]
[1739381980442,1.06730634,195.4,195.39,25.19045315]
[1739381980633,1.06730634,195.4,195.38,25.19045315]
[1739381980634,0.12549,195.39,195.38,25.19045315]
[1739381981435,5.79869634,195.41,195.38,25.19045315]
[1739381982159,20.12549,195.38,195.37,25.19045315]
[1739381982338,21.19279634,195.38,195.37,25.19045315]
[1739381982732,20.0,195.38,195.37,25.19045315]
[1739381983649,0.12549,195.39,195.37,25.19045315]
[1739381983848,0.12549,195.39,195.38,25.19045315]
[1739381984250,0.12549,195.39,195.37,25.19045315]
[1739381984558,1.19279634,195.38,195.31,5.1198]
[1739381984767,0.12549,195.37,195.3,25.19045315]
[1739381984937,1.06730634,195.36,195.3,25.19045315]
[1739381985842,4.73219,195.37,195.35,25.19045315]
[1739381986055,4.73219,195.37,195.36,25.19045315]
[1739381987760,4.73219,195.37,195.36,15.74842276]
[1739381988233,1.06730634,195.38,195.36,15.74842276]
[1739381988437,1.06730634,195.38,195.37,15.74842276]
[1739381988657,1.19279634,195.38,195.37,15.74842276]
[1739381989061,5.79919634,195.38,195.37,15.74842276]
[1739381989362,0.12549,195.37,195.36,15.74842276]
[1739381990360,4.73209,195.37,195.36,15.74842276]
[1739381990674,24.73209,195.37,195.34,15.74842276]
[1739381990864,0.12549,195.33,195.32,15.74842276]
[1739381991064,1.19279634,195.33,195.32,15.74842276]
[1739381991663,1.19279634,195.33,195.3,15.74842276]
[1739381991851,1.19279634,195.33,195.29,15.74842276]
[1739381992054,1.19279634,195.33,195.3,15.74842276]
[1739381992570,4.6078,195.32,195.26,0.03]
[1739381993355,0.12549,195.32,195.26,0.03]
[1739381993759,0.12549,195.32,195.31,15.74842276]
[1739381994949,1.06730634,195.33,195.31,15.74842276]
[1739381995155,1.13030634,195.39,195.32,15.74842276]
[1739381995456,1.13030634,195.39,195.38,15.74842276]
[1739381995765,21.25579634,195.39,195.38,15.74842276]
[1739381995944,0.12549,195.38,195.36,15.74842276]
[1739381996149,1.06730634,195.37,195.36,15.74842276]
[1739381996568,1.13030634,195.39,195.36,15.74842276]
[1739381996749,1.13030634,195.39,195.38,15.74842276]
[1739381997265,0.063,195.39,195.38,15.74842276]
[1739381997971,20.063,195.39,195.38,15.74842276]
[1739381998169,0.063,195.39,195.38,15.74842276]
[1739381998464,0.063,195.42,195.38,36.61504552]
[1739381998673,5.67060634,195.52,195.41,15.74842276]
[1739381998858,5.67060634,195.52,195.51,15.74842276]
[1739381999254,5.67060634,195.52,195.49,15.74842276]
[1739381999457,0.12549,195.51,195.49,15.74842276]
[1739381999673,1.06730634,195.5,195.49,15.74842276]
[1739382000076,21.06730634,195.5,195.49,15.74842276]
[1739382000466,0.12549,195.51,195.49,15.74842276]
[1739382000467,21.06730634,195.51,195.49,15.74842276]
[1739382000649,1.06730634,195.51,195.5,15.74842276]
[1739382000985,0.063,195.54,195.5,31.49684552]
[1739382001194,20.063,195.54,195.53,15.74842276]
[1739382001367,20.18849,195.54,195.53,15.74842276]
[1739382001875,0.12549,195.53,195.43,5.1168]
[1739382002082,1.19279634,195.53,195.43,6.19105437]
[1739382002388,1.19279634,195.53,195.43,5.1168]
[1739382002589,5.79569634,195.53,195.43,5.1168]
[1739382002760,5.79569634,195.53,195.51,25.15115256]
[1739382003154,20.0,195.5,195.48,25.15115256]
[1739382003369,1.19279634,195.49,195.46,25.15115256]
[1739382003754,1.19279634,195.49,195.4,26.67085256]
[1739382003755,21.19279634,195.49,195.45,25.15115256]
[1739382004184,21.19279634,195.49,195.47,25.15115256]
[1739382004483,1.06730634,195.49,195.48,25.15115256]
[1739382004684,0.12549,195.48,195.4,25.15115256]
[1739382004859,1.06730634,195.47,195.36,1.5402]
[1739382005050,1.06730634,195.47,195.36,3.61483157]
[1739382005880,5.79699634,195.47,195.46,25.15115256]
[1739382006669,1.06730634,195.48,195.46,25.15115256]
[1739382006873,0.12549,195.47,195.4,25.15115256]
[1739382007063,0.12549,195.47,195.36,1.5402]
[1739382007064,0.12549,195.44,195.41,25.15115256]
[1739382007273,1.06730634,195.43,195.41,25.15115256]
[1739382007575,0.12549,195.42,195.39,25.15115256]
[1739382007785,0.12549,195.4,195.38,25.15115256]
[1739382007961,20.0,195.38,195.31,6.6592]
[1739382008161,20.0,195.38,195.37,25.15115256]
[1739382008783,20.0,195.39,195.37,25.15115256]
[1739382008976,20.0,195.39,195.38,25.15115256]
[1739382009276,4.6047,195.45,195.38,50.30230512]
[1739382009468,4.6047,195.45,195.44,25.15115256]
[1739382009971,4.6042,195.47,195.44,25.15115256]
[1739382010275,4.6039,195.49,195.46,25.15115256]
[1739382010462,4.6039,195.49,195.48,25.15115256]
[1739382011070,4.6033,195.51,195.48,25.15115256]
[1739382011263,4.6028,195.53,195.5,25.15115256]
[1739382011468,4.6028,195.53,195.52,25.15115256]
[1739382012274,0.063,195.54,195.52,25.15115256]
[1739382012479,0.063,195.54,195.53,25.15115256]
[1739382021699,0.063,195.54,195.53,15.71271251]
[1739382023014,0.063,195.58,195.54,0.25098]
[1739382023306,0.063,195.58,195.57,15.71271251]
[1739382023676,0.063,195.58,195.57,31.67640502]
[1739382023883,0.063,195.61,195.57,32.74984987]
[1739382024102,0.063,195.61,195.6,31.42542502]
[1739382025005,0.063,195.61,195.6,15.71271251]
[1739382025201,0.063,195.61,195.6,15.59048091]
[1739382027490,0.18849,195.61,195.58,15.71271251]
[1739382027691,20.0,195.59,195.57,15.71271251]
[1739382027900,0.12549,195.57,195.55,7.47943897]
[1739382028100,20.12549,195.57,195.53,15.71271251]
[1739382028382,1.06730634,195.56,195.53,15.71271251]
[1739382028699,1.06730634,195.56,195.54,15.71271251]
[1739382028900,4.6024,195.55,195.54,15.71271251]
[1739382029301,20.0,195.56,195.54,15.71271251]
[1739382029500,20.0,195.56,195.55,15.71271251]
[1739382029700,20.0,195.56,195.55,25.14603115]
[1739382030982,4.6019,195.57,195.55,25.14603115]
[1739382031191,20.0,195.57,195.56,25.14603115]
[1739382031509,4.6016,195.59,195.56,25.14603115]
[1739382031710,1.25579634,195.62,195.58,25.14603115]
[1739382031884,4.6641,195.61,195.6,25.14603115]
[1739382032603,0.063,195.61,195.6,25.14603115]
[1739382032997,1.13030634,195.61,195.59,25.14603115]
[1739382033405,0.063,195.61,195.6,25.14603115]
[1739382033602,0.063,195.61,195.59,25.14603115]
[1739382034313,0.063,195.61,195.6,25.14603115]
[1739382036289,0.063,195.61,195.6,50.2920623]
[1739382036997,0.063,195.61,195.6,55.4044623]
[1739382038193,0.063,195.61,195.6,25.14603115]
[1739382038609,0.063,195.61,195.6,55.4044623]
[1739382039690,0.063,195.61,195.6,50.2920623]
[1739382041023,0.063,195.61,195.6,25.14603115]
[1739382041330,0.063,195.61,195.6,50.6685323]
[1739382041515,1.13030634,195.67,195.65,0.25098]
[1739382041516,0.063,195.67,195.65,0.25098]
[1739382041716,0.063,195.73,195.66,1.07286656]
[1739382042094,0.063,195.73,195.67,0.25098]
[1739382042300,0.063,195.73,195.68,1.07274592]
[1739382042509,0.063,195.73,195.69,55.4021623]
[1739382043408,0.063,195.73,195.69,55.7786323]
[1739382043609,0.063,195.73,195.72,25.14603115]
[1739382045923,0.063,195.73,195.72,28.87676181]
[1739382046123,0.063,195.76,195.72,30.88153181]
[1739382046423,0.063,195.76,195.75,25.14603115]
[1739382046800,0.063,195.8,195.75,25.14603115]
[1739382047001,0.063,195.8,195.79,25.14603115]
[1739382048720,0.063,195.8,195.79,55.3995623]
[1739382048918,0.063,195.8,195.79,25.14603115]
[1739382049499,0.063,195.8,195.78,25.14603115]
[1739382049500,20.0,195.79,195.78,25.14603115]
[1739382049804,20.0,195.79,195.78,15.68092745]
[1739382050302,4.5967,195.79,195.78,15.68092745]
[1739382050623,4.5967,195.79,195.77,15.68092745]
[1739382050808,1.06730634,195.78,195.74,15.68092745]
[1739382051004,20.0,195.76,195.72,15.68092745]
[1739382051208,20.0,195.76,195.69,6.23286581]
[1739382051209,21.06730634,195.75,195.71,15.68092745]
[1739382051524,21.06730634,195.75,195.73,15.68092745]
[1739382051723,21.06730634,195.75,195.73,25.10203135]
[1739382051724,20.0,195.75,195.73,25.10203135]
[1739382051919,4.6596,195.8,195.74,25.10203135]
[1739382052120,20.0,195.79,195.78,25.10203135]
[1739382052318,20.0,195.79,195.77,25.10203135]
[1739382052630,20.0,195.78,195.77,25.10203135]
[1739382052818,0.063,195.8,195.77,25.10203135]
[1739382053127,0.063,195.8,195.79,25.10203135]
[1739382056424,0.063,195.8,195.79,50.2040627]
[1739382056637,0.063,195.8,195.79,25.10203135]
[1739382058513,0.063,195.8,195.78,25.10203135]
[1739382058748,0.063,195.8,195.77,25.10203135]
[1739382058910,0.063,195.8,195.78,25.10203135]
[1739382059229,0.063,195.8,195.76,25.10203135]
[1739382059230,20.0,195.79,195.76,25.10203135]
[1739382060106,20.0,195.79,195.75,25.10203135]
[1739382060313,21.06730634,195.78,195.74,25.10203135]
[1739382060529,4.5972,195.77,195.74,25.10203135]
[1739382060730,24.5972,195.77,195.74,25.10203135]
[1739382061333,20.0,195.75,195.72,25.13203135]
[1739382061543,20.0,195.74,195.72,0.03]
[1739382062051,20.0,195.75,195.72,0.03]
[1739382062258,20.0,195.75,195.74,25.10203135]
[1739382062548,0.063,195.79,195.74,25.10203135]
[1739382062840,20.0,195.78,195.77,25.10203135]
[1739382063047,1.06730634,195.78,195.72,0.03]
[1739382063211,20.0,195.77,195.72,0.03]
[1739382063416,1.06730634,195.76,195.72,0.03]
[1739382064441,4.5977,195.75,195.73,25.10203135]
[1739382064611,20.0,195.73,195.72,0.03]
[1739382065212,20.12549,195.73,195.72,0.03]
[1739382065648,20.0,195.73,195.72,0.03]
[1739382066028,1.06730634,195.74,195.72,0.03]
[1739382066227,0.12549,195.73,195.72,0.03]
[1739382066450,4.72359,195.73,195.72,0.03]
[1739382066611,24.72359,195.73,195.72,0.03]
[1739382067517,4.5981,195.73,195.72,0.03]
[1739382068336,20.0,195.74,195.72,0.03]
[1739382068651,20.0,195.73,195.72,0.03]
[1739382068948,20.0,195.73,195.72,25.13203135]
[1739382069162,4.5978,195.75,195.72,25.13203135]
[1739382069315,20.0,195.74,195.72,0.03]
[1739382069717,4.6598,195.79,195.72,0.03]
[1739382070445,20.0,195.77,195.72,0.03]
[1739382070650,20.0,195.77,195.76,25.10203135]
[1739382070850,4.6598,195.79,195.75,25.10203135]
[1739382070851,25.66420634,195.78,195.75,25.10203135]
[1739382071054,5.66420634,195.78,195.75,25.10203135]
[1739382071381,20.0,195.76,195.75,25.10203135]
[1739382071726,20.0,195.76,195.75,15.68443174]
[1739382072126,24.5969,195.78,195.75,15.68443174]
[1739382072433,25.66420634,195.78,195.75,15.68443174]
[1739382072643,25.66420634,195.78,195.74,15.68443174]
[1739382073148,0.12549,195.77,195.72,15.71443174]
[1739382073351,21.06730634,195.76,195.72,15.71443174]
[1739382073660,20.0,195.76,195.73,15.68443174]
[1739382074029,21.19279634,195.77,195.74,15.68443174]
[1739382074335,4.5974,195.76,195.75,0.03]
[1739382075138,4.5974,195.76,195.75,15.71443174]
[1739382075536,20.0,195.77,195.75,15.71443174]
[1739382075761,4.5972,195.78,195.76,15.68443174]
[1739382075963,4.5972,195.78,195.77,15.68443174]
[1739382076343,24.5972,195.78,195.77,15.68443174]
[1739382077257,0.063,195.79,195.77,15.68443174]
[1739382077455,0.063,195.79,195.78,15.68443174]
[1739382085668,0.063,195.79,195.78,19.44076205]
[1739382085868,0.063,195.8,195.79,0.37647]
[1739382086175,0.063,195.8,195.79,37.92492198]
[1739382086960,0.063,195.8,195.79,22.24049024]
[1739382087270,0.063,195.8,195.79,32.01256923]
[1739382088349,0.063,195.8,195.79,25.45651073]
[1739382090355,0.063,195.8,195.79,15.68443174]
[1739382092889,0.063,195.8,195.78,15.68443174]
[1739382094099,4.6595,195.8,195.77,15.68443174]
[1739382094251,1.06730634,195.79,195.75,0.03]
[1739382094658,1.06730634,195.79,195.75,15.71443174]
[1739382094967,1.06730634,195.79,195.75,0.03]
[1739382095278,0.12549,195.78,195.75,0.03]
[1739382095699,20.12549,195.76,195.75,0.03]
[1739382095983,40.40732174,195.76,195.75,0.03]
[1739382096171,53.81917027,195.76,195.75,0.03]
[1739382096377,40.40732174,195.76,195.75,0.03]
[1739382096568,4.72289,195.76,195.75,0.03]
[1739382096764,5.79019634,195.76,195.75,0.03]
[1739382097779,20.0,195.76,195.75,0.03]
[1739382097970,0.063,195.8,195.75,15.71443174]
[1739382098176,21.06730634,195.79,195.76,15.68443174]
[1739382098377,21.19279634,195.79,195.78,0.063]
[1739382098681,1.19279634,195.79,195.78,0.063]
[1739382100186,5.78949634,195.79,195.78,0.063]
[1739382101416,35.01126661,195.79,195.78,0.063]
[1739382101967,35.26224661,195.79,195.78,0.063]
[1739382107701,37.27955598,195.79,195.78,0.063]
[1739382108405,34.88577661,195.79,195.78,0.063]
[1739382109700,5.78949634,195.79,195.78,0.063]
[1739382109910,4.72219,195.79,195.78,0.063]
[1739382110091,4.75219,195.79,195.78,0.063]
[1739382110584,24.75219,195.79,195.78,0.063]
[1739382110785,33.84847027,195.79,195.78,0.063]
[1739382111404,33.97396027,195.79,195.78,0.063]
[1739382111604,20.12549,195.76,195.75,0.03]
[1739382111818,35.80992174,195.76,195.75,0.03]
[1739382112202,0.12549,195.76,195.75,0.03]
[1739382112398,5.79019634,195.76,195.75,0.03]
[1739382112711,4.72289,195.76,195.75,0.03]
[1739382113598,24.72289,195.76,195.75,0.03]
[1739382113909,25.79019634,195.76,195.75,0.03]
[1739382114810,24.72289,195.76,195.75,0.03]
[1739382115507,24.5974,195.76,195.75,0.03]
[1739382117203,4.5974,195.76,195.75,15.71443174]
[1739382117709,20.0,195.76,195.75,15.71443174]
[1739382118513,20.0,195.76,195.75,0.03]
[1739382119618,25.66470634,195.76,195.75,0.03]
[1739382120724,24.5974,195.76,195.75,0.03]
[1739382121222,24.72289,195.76,195.75,0.03]
[1739382121405,24.72289,195.76,195.72,0.03]
[1739382121406,20.40732174,195.76,195.72,0.03]
[1739382121726,15.80992174,195.73,195.72,0.03]
[1739382122036,16.87722808,195.73,195.72,0.03]
[1739382122507,16.87722808,195.73,195.61,2.64946263]
[1739382122508,0.12549,195.69,195.62,15.68443174]
[1739382122707,4.6,195.65,195.61,15.68443174]
[1739382123022,20.0,195.64,195.59,15.68443174]
[1739382123227,1.06730634,195.63,195.58,0.063]
[1739382123597,0.12549,195.62,195.58,0.063]
[1739382123836,20.0,195.6,195.58,0.063]
[1739382124004,20.0,195.6,195.58,15.74743174]
[1739382124203,20.0,195.64,195.59,15.68443174]
[1739382124424,20.0,195.64,195.63,15.68443174]
[1739382124626,20.0,195.64,195.62,15.68443174]
[1739382125027,24.6,195.65,195.63,15.68443174]
[1739382125202,4.5996,195.67,195.64,15.68443174]
[1739382125603,4.5996,195.67,195.63,15.68443174]
[1739382126211,4.5996,195.67,195.64,15.68443174]
[1739382126410,4.5996,195.67,195.65,15.68443174]
[1739382126635,4.72479,195.68,195.65,15.68443174]
[1739382127141,1.06730634,195.67,195.63,15.68443174]
[1739382127723,1.06730634,195.67,195.61,15.68443174]
[1739382127724,0.12549,195.66,195.61,15.68443174]
[1739382127923,1.06730634,195.65,195.61,15.68443174]
[1739382128137,0.12549,195.66,195.61,15.68443174]
[1739382128313,1.06730634,195.67,195.63,15.68443174]
[1739382128528,5.66570634,195.72,195.66,15.68443174]
[1739382128718,0.12549,195.71,195.67,15.68443174]
[1739382129036,0.12549,195.69,195.64,15.68443174]
[1739382129637,4.72469,195.69,195.64,15.68443174]
[1739382129817,1.06730634,195.68,195.64,15.68443174]
[1739382130018,4.72469,195.69,195.64,15.68443174]
[1739382130220,4.5992,195.69,195.66,15.68443174]
[1739382130443,1.607,195.73,195.68,15.68443174]
[1739382130444,5.66600634,195.71,195.68,15.68443174]
[1739382130651,5.66600634,195.71,195.69,15.68443174]